[Event "Late-Titled-Tuesday-Blitz-February-13-2024"]
[Site "Chess.com"]
[Date "2024.02.13"]
[Round "2"]
[White "Lady_Nika"]
[Black "klimkoj"]
[Result "0-1"]
[WhiteElo "2585"]
[BlackElo "2921"]
[TimeControl "180+1"]
[EndTime "14:17:42 PST"]
[Termination "klimkoj won by checkmate"]

1. d4 {[%clk 0:03:00.9]} 1... d5 {[%clk 0:02:59.2]} 2. e3 {[%clk 0:03:01.8]}
2... Nf6 {[%clk 0:02:58]} 3. f4 {[%clk 0:03:02.1]} 3... c5 {[%clk 0:02:57]} 4.
Nf3 {[%clk 0:03:03]} 4... Bf5 {[%clk 0:02:53.2]} 5. c3 {[%clk 0:03:02.9]} 5...
e6 {[%clk 0:02:52.5]} 6. Bd3 {[%clk 0:03:02.8]} 6... Bxd3 {[%clk 0:02:51.9]} 7.
Qxd3 {[%clk 0:03:02.7]} 7... Nc6 {[%clk 0:02:52.3]} 8. O-O {[%clk 0:03:02.9]}
8... Ne4 {[%clk 0:02:51.2]} 9. Nbd2 {[%clk 0:03:02.8]} 9... f5 {[%clk
0:02:51.6]} 10. Ne5 {[%clk 0:03:03.1]} 10... Nxe5 {[%clk 0:02:50.9]} 11. fxe5
{[%clk 0:03:03.1]} 11... cxd4 {[%clk 0:02:36.3]} 12. exd4 {[%clk 0:03:01.9]}
12... Be7 {[%clk 0:02:35.1]} 13. Nxe4 {[%clk 0:03:01.8]} 13... dxe4 {[%clk
0:02:36]} 14. Qb5+ {[%clk 0:02:52.3]} 14... Qd7 {[%clk 0:02:36]} 15. Qb3 {[%clk
0:02:52.4]} 15... O-O {[%clk 0:02:32.9]} 16. Be3 {[%clk 0:02:52.4]} 16... Kh8
{[%clk 0:02:30.3]} 17. Rad1 {[%clk 0:02:50.4]} 17... g5 {[%clk 0:02:21.1]} 18.
d5 {[%clk 0:02:49.1]} 18... f4 {[%clk 0:01:46.8]} 19. dxe6 {[%clk 0:02:45.8]}
19... Qc6 {[%clk 0:01:47.2]} 20. Bc1 {[%clk 0:02:26.9]} 20... e3 {[%clk
0:01:33.3]} 21. Qc2 {[%clk 0:02:26.1]} 21... Qxe6 {[%clk 0:01:32.5]} 22. Qe4
{[%clk 0:02:23.2]} 22... Bc5 {[%clk 0:01:24]} 23. Kh1 {[%clk 0:02:21]} 23...
Rad8 {[%clk 0:01:16.5]} 24. b4 {[%clk 0:02:18.9]} 24... Bb6 {[%clk 0:01:15]} 25.
c4 {[%clk 0:02:17.4]} 25... Qc6 {[%clk 0:01:09.1]} 26. Qc2 {[%clk 0:02:12.1]}
26... Bd4 {[%clk 0:01:05.6]} 27. b5 {[%clk 0:01:07.5]} 27... Qe6 {[%clk
0:01:02.3]} 28. Ba3 {[%clk 0:01:02]} 28... Rfe8 {[%clk 0:00:57.2]} 29. c5 {[%clk
0:01:01.2]} 29... Qxe5 {[%clk 0:00:54.9]} 30. Rxd4 {[%clk 0:00:59.3]} 30... Rxd4
{[%clk 0:00:51.1]} 31. Bb2 {[%clk 0:00:59.3]} 31... e2 {[%clk 0:00:12]} 32. Re1
{[%clk 0:00:58]} 32... Kg8 {[%clk 0:00:11.5]} 33. Bxd4 {[%clk 0:00:57.4]} 33...
Qxd4 {[%clk 0:00:11.5]} 34. h3 {[%clk 0:00:36.6]} 34... Qf2 {[%clk 0:00:11.7]}
35. Qc3 {[%clk 0:00:35.8]} 35... f3 {[%clk 0:00:10.5]} 36. gxf3 {[%clk 0:00:34]}
36... Re3 {[%clk 0:00:10.6]} 37. Qc4+ {[%clk 0:00:33.4]} 37... Kf8 {[%clk
0:00:10.8]} 38. Qb4 {[%clk 0:00:03.9]} 38... Qxf3+ {[%clk 0:00:10.6]} 39. Kg1
{[%clk 0:00:03.5]} 39... Qg3+ {[%clk 0:00:10.8]} 40. Kh1 {[%clk 0:00:03.9]}
40... Qxh3+ {[%clk 0:00:11.4]} 41. Kg1 {[%clk 0:00:04.3]} 41... Rg3+ {[%clk
0:00:12]} 42. Kf2 {[%clk 0:00:04.6]} 42... Qg2# {[%clk 0:00:12.9]} 0-1

[Event "Late-Titled-Tuesday-Blitz-February-13-2024"]
[Site "Chess.com"]
[Date "2024.02.13"]
[Round "2"]
[White "manitodeplomo"]
[Black "ChessLover0108"]
[Result "0-1"]
[WhiteElo "2638"]
[BlackElo "2999"]
[TimeControl "180+1"]
[EndTime "14:17:43 PST"]
[Termination "ChessLover0108 won by checkmate"]

1. d4 {[%clk 0:03:00.9]} 1... Nf6 {[%clk 0:02:57.5]} 2. c4 {[%clk 0:03:00]} 2...
g6 {[%clk 0:02:57.9]} 3. Nc3 {[%clk 0:02:56.8]} 3... Bg7 {[%clk 0:02:58.1]} 4.
e4 {[%clk 0:02:53.5]} 4... O-O {[%clk 0:02:57.7]} 5. Be2 {[%clk 0:02:41.4]} 5...
d6 {[%clk 0:02:54.8]} 6. Nf3 {[%clk 0:02:41.4]} 6... e5 {[%clk 0:02:53.3]} 7. d5
{[%clk 0:02:41]} 7... Na6 {[%clk 0:02:52]} 8. Be3 {[%clk 0:02:34.2]} 8... Ng4
{[%clk 0:02:50.4]} 9. Bg5 {[%clk 0:02:33.6]} 9... f6 {[%clk 0:02:49.8]} 10. Bh4
{[%clk 0:02:33.4]} 10... h5 {[%clk 0:02:44]} 11. Nd2 {[%clk 0:02:26.1]} 11...
Nh6 {[%clk 0:02:44.3]} 12. f3 {[%clk 0:02:14.7]} 12... c5 {[%clk 0:02:43.9]} 13.
a3 {[%clk 0:01:58.7]} 13... Bd7 {[%clk 0:02:38.6]} 14. Rb1 {[%clk 0:01:56.7]}
14... Qe7 {[%clk 0:02:24.4]} 15. b4 {[%clk 0:01:55.8]} 15... b6 {[%clk
0:02:24.6]} 16. O-O {[%clk 0:01:29.8]} 16... Nf7 {[%clk 0:02:18]} 17. Kh1 {[%clk
0:01:24.9]} 17... Bh6 {[%clk 0:02:16.7]} 18. Bf2 {[%clk 0:00:45.2]} 18... Kg7
{[%clk 0:02:16.4]} 19. bxc5 {[%clk 0:00:20.3]} 19... Nxc5 {[%clk 0:02:05.1]} 20.
Nb3 {[%clk 0:00:20.2]} 20... Na4 {[%clk 0:01:59.7]} 21. Nxa4 {[%clk 0:00:17.2]}
21... Bxa4 {[%clk 0:02:00.6]} 22. Qd3 {[%clk 0:00:17.2]} 22... Rfc8 {[%clk
0:01:54.6]} 23. Nc1 {[%clk 0:00:14.3]} 23... Bd7 {[%clk 0:01:46.5]} 24. Na2
{[%clk 0:00:14.3]} 24... f5 {[%clk 0:01:47.2]} 25. Nc3 {[%clk 0:00:12.7]} 25...
f4 {[%clk 0:01:46.9]} 26. a4 {[%clk 0:00:12.3]} 26... g5 {[%clk 0:01:05.7]} 27.
a5 {[%clk 0:00:11.5]} 27... g4 {[%clk 0:01:01.7]} 28. axb6 {[%clk 0:00:10.2]}
28... axb6 {[%clk 0:01:02.6]} 29. Bxb6 {[%clk 0:00:09.8]} 29... g3 {[%clk
0:00:57.2]} 30. Rfd1 {[%clk 0:00:09.4]} 30... gxh2 {[%clk 0:00:19.7]} 31. c5
{[%clk 0:00:08.5]} 31... dxc5 {[%clk 0:00:19.4]} 32. d6 {[%clk 0:00:09.4]} 32...
Qg5 {[%clk 0:00:17.9]} 33. Nd5 {[%clk 0:00:07.7]} 33... c4 {[%clk 0:00:18.5]}
34. Qc2 {[%clk 0:00:07.4]} 34... h4 {[%clk 0:00:15.6]} 35. Bf1 {[%clk
0:00:06.9]} 35... Ba4 {[%clk 0:00:15.5]} 36. Qe2 {[%clk 0:00:05.6]} 36... Bxd1
{[%clk 0:00:15.7]} 37. Rxd1 {[%clk 0:00:05.8]} 37... Nxd6 {[%clk 0:00:12.8]} 38.
Nc7 {[%clk 0:00:05.8]} 38... Rxc7 {[%clk 0:00:08.1]} 39. Bxc7 {[%clk 0:00:05.1]}
39... Nf7 {[%clk 0:00:07.9]} 40. Rd5 {[%clk 0:00:05.4]} 40... h3 {[%clk
0:00:08.2]} 41. gxh3 {[%clk 0:00:04.9]} 41... Qg1# {[%clk 0:00:08.1]} 0-1

[Event "Late-Titled-Tuesday-Blitz-February-13-2024"]
[Site "Chess.com"]
[Date "2024.02.13"]
[Round "2"]
[White "Chopper1905"]
[Black "aghasiyevkamal"]
[Result "0-1"]
[WhiteElo "2959"]
[BlackElo "2644"]
[TimeControl "180+1"]
[EndTime "14:17:43 PST"]
[Termination "aghasiyevkamal won on time"]

1. Nf3 {[%clk 0:03:00.9]} 1... d5 {[%clk 0:02:57.1]} 2. d4 {[%clk 0:02:58.5]}
2... Nf6 {[%clk 0:02:55.5]} 3. Bf4 {[%clk 0:02:57.4]} 3... e6 {[%clk 0:02:54.6]}
4. e3 {[%clk 0:02:57.2]} 4... Bd6 {[%clk 0:02:53.4]} 5. Nbd2 {[%clk 0:02:56.7]}
5... O-O {[%clk 0:02:51.4]} 6. Bd3 {[%clk 0:02:51.8]} 6... b6 {[%clk 0:02:50.3]}
7. Qe2 {[%clk 0:02:51.1]} 7... Bb7 {[%clk 0:02:43.5]} 8. Ne5 {[%clk 0:02:45.8]}
8... c5 {[%clk 0:02:37.9]} 9. c3 {[%clk 0:02:44.6]} 9... Nc6 {[%clk 0:02:33.9]}
10. h4 {[%clk 0:02:41.5]} 10... Qc7 {[%clk 0:02:30.7]} 11. Ndf3 {[%clk 0:02:36]}
11... Ne4 {[%clk 0:02:28.7]} 12. h5 {[%clk 0:02:31.6]} 12... f6 {[%clk
0:02:20.2]} 13. Nxc6 {[%clk 0:02:26.8]} 13... Bxf4 {[%clk 0:02:08.3]} 14. exf4
{[%clk 0:02:22.5]} 14... Bxc6 {[%clk 0:02:07.2]} 15. Qe3 {[%clk 0:02:18.3]}
15... Rae8 {[%clk 0:02:00.5]} 16. h6 {[%clk 0:02:06.2]} 16... g6 {[%clk
0:01:56]} 17. O-O-O {[%clk 0:01:51.9]} 17... Nd6 {[%clk 0:01:30.7]} 18. dxc5
{[%clk 0:01:42.9]} 18... bxc5 {[%clk 0:01:30.6]} 19. Qxc5 {[%clk 0:01:41.6]}
19... Rc8 {[%clk 0:01:30.6]} 20. Nd4 {[%clk 0:01:39.4]} 20... Bd7 {[%clk
0:01:27]} 21. Qxc7 {[%clk 0:01:38.4]} 21... Rxc7 {[%clk 0:01:27.3]} 22. Rde1
{[%clk 0:01:36.3]} 22... Kf7 {[%clk 0:01:27.2]} 23. g4 {[%clk 0:01:32.8]} 23...
Re8 {[%clk 0:01:15.5]} 24. g5 {[%clk 0:00:40.9]} 24... e5 {[%clk 0:01:14.7]} 25.
fxe5 {[%clk 0:00:38]} 25... fxe5 {[%clk 0:01:14.7]} 26. Nc2 {[%clk 0:00:36.2]}
26... Bf5 {[%clk 0:01:07.2]} 27. Bxf5 {[%clk 0:00:32.5]} 27... gxf5 {[%clk
0:01:06.5]} 28. f4 {[%clk 0:00:28.3]} 28... d4 {[%clk 0:00:46.3]} 29. fxe5
{[%clk 0:00:26.4]} 29... Ne4 {[%clk 0:00:40.4]} 30. Nxd4 {[%clk 0:00:22.4]}
30... Rxe5 {[%clk 0:00:40.5]} 31. Rhf1 {[%clk 0:00:15]} 31... Kg6 {[%clk
0:00:40.6]} 32. Nf3 {[%clk 0:00:14.5]} 32... Ra5 {[%clk 0:00:38.3]} 33. Kb1
{[%clk 0:00:12.7]} 33... Rb5 {[%clk 0:00:36.7]} 34. Kc2 {[%clk 0:00:11.3]} 34...
Rcb7 {[%clk 0:00:35.4]} 35. b4 {[%clk 0:00:09.7]} 35... a5 {[%clk 0:00:34]} 36.
Nd4 {[%clk 0:00:08.2]} 36... Rd5 {[%clk 0:00:33.6]} 37. a3 {[%clk 0:00:08.4]}
37... Rc7 {[%clk 0:00:33.4]} 38. Ne2 {[%clk 0:00:04.6]} 38... Rd2+ {[%clk
0:00:32.9]} 39. Kb3 {[%clk 0:00:05]} 39... a4+ {[%clk 0:00:26.1]} 40. Kxa4
{[%clk 0:00:05.4]} 40... Rxe2 {[%clk 0:00:26.4]} 41. Rxe2 {[%clk 0:00:06.3]}
41... Nxc3+ {[%clk 0:00:26.8]} 42. Ka5 {[%clk 0:00:07.1]} 42... Nxe2 {[%clk
0:00:27.1]} 43. Kb6 {[%clk 0:00:07.8]} 43... Rc4 {[%clk 0:00:22.1]} 44. b5
{[%clk 0:00:08]} 44... Nd4 {[%clk 0:00:20.9]} 45. Rf4 {[%clk 0:00:03.7]} 45...
Kxg5 {[%clk 0:00:19]} 46. Rf1 {[%clk 0:00:02.7]} 46... Ra4 {[%clk 0:00:17.6]}
0-1

[Event "Late-Titled-Tuesday-Blitz-February-13-2024"]
[Site "Chess.com"]
[Date "2024.02.13"]
[Round "2"]
[White "GoltsevDmitry2000"]
[Black "Inepton_Fermion"]
[Result "1-0"]
[WhiteElo "2769"]
[BlackElo "2375"]
[TimeControl "180+1"]
[EndTime "14:17:46 PST"]
[Termination "GoltsevDmitry2000 won on time"]

1. e4 {[%clk 0:03:00.2]} 1... c5 {[%clk 0:02:59.9]} 2. Nf3 {[%clk 0:02:59.4]}
2... e6 {[%clk 0:02:57.4]} 3. d4 {[%clk 0:02:59.8]} 3... cxd4 {[%clk 0:02:58.3]}
4. Nxd4 {[%clk 0:03:00.3]} 4... Nc6 {[%clk 0:02:58.8]} 5. Nc3 {[%clk 0:03:00.7]}
5... Qc7 {[%clk 0:02:58.6]} 6. Be2 {[%clk 0:03:01.1]} 6... a6 {[%clk 0:02:58.4]}
7. O-O {[%clk 0:03:01.4]} 7... Nf6 {[%clk 0:02:58.2]} 8. Be3 {[%clk 0:03:01.5]}
8... Be7 {[%clk 0:02:57.8]} 9. f4 {[%clk 0:03:02.1]} 9... d6 {[%clk 0:02:58.1]}
10. Bf3 {[%clk 0:03:02.4]} 10... O-O {[%clk 0:02:53.6]} 11. g4 {[%clk
0:03:02.4]} 11... Nxd4 {[%clk 0:02:44.1]} 12. Bxd4 {[%clk 0:03:00.7]} 12... e5
{[%clk 0:02:32.9]} 13. Be3 {[%clk 0:03:00.6]} 13... exf4 {[%clk 0:02:32.1]} 14.
Bxf4 {[%clk 0:03:00.7]} 14... Be6 {[%clk 0:02:28.8]} 15. g5 {[%clk 0:02:59.7]}
15... Nd7 {[%clk 0:02:24.9]} 16. Kh1 {[%clk 0:03:00]} 16... Ne5 {[%clk
0:02:15.5]} 17. Be2 {[%clk 0:02:56.1]} 17... Rac8 {[%clk 0:02:04.5]} 18. Qe1
{[%clk 0:02:50.3]} 18... b5 {[%clk 0:02:01.7]} 19. a3 {[%clk 0:02:49.7]} 19...
Qb6 {[%clk 0:01:52.5]} 20. Qg3 {[%clk 0:02:47.1]} 20... b4 {[%clk 0:01:33.7]}
21. axb4 {[%clk 0:02:46.9]} 21... Qxb4 {[%clk 0:01:34.6]} 22. Bxa6 {[%clk
0:02:38.3]} 22... Ra8 {[%clk 0:01:30.2]} 23. Rfb1 {[%clk 0:02:12.5]} 23... Qb6
{[%clk 0:01:19]} 24. Be3 {[%clk 0:02:12.3]} 24... Qc7 {[%clk 0:00:47.5]} 25. Be2
{[%clk 0:02:09.7]} 25... Rxa1 {[%clk 0:00:44.5]} 26. Rxa1 {[%clk 0:02:09.5]}
26... Rb8 {[%clk 0:00:45.1]} 27. Ra7 {[%clk 0:02:06.9]} 27... Rb7 {[%clk
0:00:37.5]} 28. Nb5 {[%clk 0:02:05.2]} 28... Qb8 {[%clk 0:00:35.5]} 29. Rxb7
{[%clk 0:02:01.5]} 29... Qxb7 {[%clk 0:00:35.4]} 30. Qg2 {[%clk 0:01:58.3]}
30... Bc4 {[%clk 0:00:30.8]} 31. Nd4 {[%clk 0:01:46.3]} 31... Qxb2 {[%clk
0:00:27.3]} 32. h4 {[%clk 0:01:45.2]} 32... g6 {[%clk 0:00:20.3]} 33. Nc6 {[%clk
0:01:30.8]} 33... Bxe2 {[%clk 0:00:12.6]} 34. Nxe7+ {[%clk 0:01:29.8]} 34... Kf8
{[%clk 0:00:12.3]} 35. Nxg6+ {[%clk 0:01:30.4]} 35... hxg6 {[%clk 0:00:10.1]}
36. Qxe2 {[%clk 0:01:30.8]} 36... Qb1+ {[%clk 0:00:09.9]} 37. Kg2 {[%clk
0:01:30.6]} 37... Qb7 {[%clk 0:00:10.2]} 38. Bf4 {[%clk 0:01:30.5]} 38... Qc6
{[%clk 0:00:07.7]} 39. Bxe5 {[%clk 0:01:28.6]} 39... dxe5 {[%clk 0:00:08.1]} 40.
Qd3 {[%clk 0:01:29.5]} 40... Kg7 {[%clk 0:00:08.1]} 41. Kg3 {[%clk 0:01:27.1]}
41... Qb6 {[%clk 0:00:06.3]} 42. Kg2 {[%clk 0:01:25.9]} 42... Qc5 {[%clk
0:00:05]} 43. c4 {[%clk 0:01:25.4]} 43... Qb4 {[%clk 0:00:05.3]} 44. Qc2 {[%clk
0:01:24.3]} 44... Qe1 {[%clk 0:00:04.7]} 45. c5 {[%clk 0:01:19.9]} 45... Qxh4
{[%clk 0:00:04.7]} 46. c6 {[%clk 0:01:20.1]} 46... Qxg5+ {[%clk 0:00:04.6]} 47.
Kf1 {[%clk 0:01:19.8]} 47... Qf4+ {[%clk 0:00:04.3]} 48. Ke1 {[%clk 0:01:19.6]}
48... Qe3+ {[%clk 0:00:04.7]} 49. Kd1 {[%clk 0:01:19.9]} 49... Qg1+ {[%clk
0:00:03.4]} 50. Kd2 {[%clk 0:01:20]} 50... Qf2+ {[%clk 0:00:04]} 51. Kc1 {[%clk
0:01:20.4]} 51... Qe1+ {[%clk 0:00:03.5]} 52. Kb2 {[%clk 0:01:19.9]} 52... Qb4+
{[%clk 0:00:04.1]} 53. Ka2 {[%clk 0:01:17.6]} 53... Qa5+ {[%clk 0:00:03.9]} 54.
Kb3 {[%clk 0:01:18.1]} 54... Qb5+ {[%clk 0:00:04]} 55. Ka3 {[%clk 0:01:18]}
55... Qa5+ {[%clk 0:00:04.3]} 56. Qa4 {[%clk 0:01:17.8]} 56... Qc3+ {[%clk
0:00:04.5]} 57. Ka2 {[%clk 0:01:18.1]} 57... Qd2+ {[%clk 0:00:04.3]} 58. Kb1
{[%clk 0:01:17.1]} 58... Qd3+ {[%clk 0:00:03]} 59. Qc2 {[%clk 0:01:15.7]} 59...
Qb5+ {[%clk 0:00:02.3]} 60. Kc1 {[%clk 0:01:10.6]} 60... Qf1+ {[%clk 0:00:02.3]}
61. Kd2 {[%clk 0:01:11.2]} 61... Qf2+ {[%clk 0:00:02.5]} 62. Kd3 {[%clk
0:01:11.9]} 62... Qf3+ {[%clk 0:00:02.5]} 63. Kc4 {[%clk 0:01:11.6]} 63... Qf1+
{[%clk 0:00:02.9]} 64. Kc5 {[%clk 0:01:09.6]} 64... Qa6 {[%clk 0:00:02.2]} 65.
c7 {[%clk 0:01:08.1]} 65... Qc8 {[%clk 0:00:02.3]} 66. Kb6 {[%clk 0:01:06.8]}
66... g5 {[%clk 0:00:01.4]} 67. Qd2 {[%clk 0:01:06.8]} 67... f6 {[%clk
0:00:01.1]} 68. Qd8 {[%clk 0:01:06.6]} 68... Qe6+ {[%clk 0:00:01.5]} 69. Kc5
{[%clk 0:01:03.5]} 1-0

[Event "Late-Titled-Tuesday-Blitz-February-13-2024"]
[Site "Chess.com"]
[Date "2024.02.13"]
[Round "2"]
[White "h4parah5"]
[Black "PolandHussars"]
[Result "1-0"]
[WhiteElo "2963"]
[BlackElo "2611"]
[TimeControl "180+1"]
[EndTime "14:17:55 PST"]
[Termination "h4parah5 won by checkmate"]

1. Nf3 {[%clk 0:03:00.9]} 1... d5 {[%clk 0:02:59.7]} 2. e3 {[%clk 0:03:00]} 2...
Nf6 {[%clk 0:02:55.7]} 3. c4 {[%clk 0:02:59.6]} 3... c6 {[%clk 0:02:55.4]} 4.
Nc3 {[%clk 0:02:56.1]} 4... Bg4 {[%clk 0:02:52.8]} 5. cxd5 {[%clk 0:02:51.1]}
5... Nxd5 {[%clk 0:02:51]} 6. Qb3 {[%clk 0:02:47.3]} 6... b6 {[%clk 0:02:12.2]}
7. Nxd5 {[%clk 0:02:32.3]} 7... Bxf3 {[%clk 0:02:11]} 8. Nxb6 {[%clk 0:02:21.8]}
8... axb6 {[%clk 0:02:02.9]} 9. gxf3 {[%clk 0:02:20.2]} 9... e6 {[%clk
0:02:01.4]} 10. f4 {[%clk 0:02:19.6]} 10... Qd5 {[%clk 0:01:59.8]} 11. Qxd5
{[%clk 0:02:18.3]} 11... cxd5 {[%clk 0:01:59]} 12. Bb5+ {[%clk 0:02:17.6]} 12...
Nd7 {[%clk 0:01:56.7]} 13. Ke2 {[%clk 0:02:15.1]} 13... Bd6 {[%clk 0:01:55.7]}
14. b3 {[%clk 0:02:12.1]} 14... Ke7 {[%clk 0:01:56.1]} 15. Bb2 {[%clk
0:02:11.4]} 15... Rhg8 {[%clk 0:01:55.3]} 16. h4 {[%clk 0:02:08]} 16... h5
{[%clk 0:01:53.3]} 17. Rhc1 {[%clk 0:01:56.9]} 17... Ra5 {[%clk 0:01:44.8]} 18.
a4 {[%clk 0:01:42.6]} 18... Ra7 {[%clk 0:01:42.7]} 19. d4 {[%clk 0:01:37.7]}
19... Nf6 {[%clk 0:01:36.3]} 20. Rc6 {[%clk 0:01:34.6]} 20... Rb8 {[%clk
0:01:34.5]} 21. Rac1 {[%clk 0:01:31.2]} 21... Bb4 {[%clk 0:01:29.8]} 22. Rc7+
{[%clk 0:01:14.9]} 22... Rxc7 {[%clk 0:01:29.8]} 23. Rxc7+ {[%clk 0:01:15.4]}
23... Kf8 {[%clk 0:01:30.7]} 24. Bc3 {[%clk 0:01:04.9]} 24... Be7 {[%clk
0:01:26.5]} 25. Be1 {[%clk 0:00:59.8]} 25... Bd8 {[%clk 0:01:14.3]} 26. Rc6
{[%clk 0:00:47.4]} 26... Ng4 {[%clk 0:01:09]} 27. f3 {[%clk 0:00:44.9]} 27...
Nh6 {[%clk 0:01:09.4]} 28. e4 {[%clk 0:00:44.6]} 28... dxe4 {[%clk 0:01:08.7]}
29. fxe4 {[%clk 0:00:45.5]} 29... Ng4 {[%clk 0:01:07.1]} 30. Kf3 {[%clk
0:00:39.6]} 30... Nh2+ {[%clk 0:01:04.7]} 31. Ke2 {[%clk 0:00:38.4]} 31... Ng4
{[%clk 0:01:03.5]} 32. b4 {[%clk 0:00:38.6]} 32... Nf6 {[%clk 0:01:02.7]} 33.
Kf3 {[%clk 0:00:37.8]} 33... Ra8 {[%clk 0:01:01.9]} 34. Rc2 {[%clk 0:00:33.8]}
34... Ng8 {[%clk 0:00:44.7]} 35. a5 {[%clk 0:00:32]} 35... bxa5 {[%clk
0:00:44.5]} 36. bxa5 {[%clk 0:00:32.9]} 36... Bxh4 {[%clk 0:00:35.9]} 37. Bxh4
{[%clk 0:00:30.8]} 37... g5 {[%clk 0:00:36]} 38. Be1 {[%clk 0:00:28.8]} 38...
g4+ {[%clk 0:00:35]} 39. Ke3 {[%clk 0:00:27.4]} 39... h4 {[%clk 0:00:33.9]} 40.
Bc6 {[%clk 0:00:23.2]} 40... Ra7 {[%clk 0:00:31.8]} 41. Bxh4 {[%clk 0:00:19.7]}
41... Rxa5 {[%clk 0:00:31.6]} 42. d5 {[%clk 0:00:20.2]} 42... Ra3+ {[%clk
0:00:29.2]} 43. Kd4 {[%clk 0:00:19.7]} 43... exd5 {[%clk 0:00:27.9]} 44. Bxd5
{[%clk 0:00:18.9]} 44... Rh3 {[%clk 0:00:28.8]} 45. Bg5 {[%clk 0:00:17.5]} 45...
f6 {[%clk 0:00:26.2]} 46. Rc8+ {[%clk 0:00:15.5]} 46... Ke7 {[%clk 0:00:26.1]}
47. Rxg8 {[%clk 0:00:16.2]} 47... fxg5 {[%clk 0:00:26.5]} 48. Rxg5 {[%clk
0:00:16.5]} 48... g3 {[%clk 0:00:27.1]} 49. e5 {[%clk 0:00:16.4]} 49... Kf8
{[%clk 0:00:27.2]} 50. f5 {[%clk 0:00:15.8]} 50... Ke7 {[%clk 0:00:27]} 51. f6+
{[%clk 0:00:16]} 51... Kd7 {[%clk 0:00:26.8]} 52. Rg7+ {[%clk 0:00:15.8]} 52...
Kd8 {[%clk 0:00:25.8]} 53. f7 {[%clk 0:00:15.8]} 53... Rh4+ {[%clk 0:00:24.9]}
54. Kc5 {[%clk 0:00:15.6]} 54... Rf4 {[%clk 0:00:25.3]} 55. Rg8+ {[%clk
0:00:15.1]} 55... Ke7 {[%clk 0:00:26]} 56. Re8+ {[%clk 0:00:14.8]} 56... Kd7
{[%clk 0:00:26.2]} 57. e6+ {[%clk 0:00:15.2]} 57... Kc7 {[%clk 0:00:26.4]} 58.
f8=Q {[%clk 0:00:15.4]} 58... Rxf8 {[%clk 0:00:25.7]} 59. Rxf8 {[%clk
0:00:16.3]} 59... g2 {[%clk 0:00:24.7]} 60. Rf7+ {[%clk 0:00:16.5]} 60... Kb8
{[%clk 0:00:24.9]} 61. Rg7 {[%clk 0:00:15.5]} 61... g1=Q+ {[%clk 0:00:24.3]} 62.
Rxg1 {[%clk 0:00:15.5]} 62... Ka7 {[%clk 0:00:24.7]} 63. Rg8 {[%clk 0:00:14.5]}
63... Ka6 {[%clk 0:00:25]} 64. Ra8# {[%clk 0:00:15.2]} 1-0

[Event "Late-Titled-Tuesday-Blitz-February-13-2024"]
[Site "Chess.com"]
[Date "2024.02.13"]
[Round "2"]
[White "ural58"]
[Black "Doublekk14"]
[Result "1-0"]
[WhiteElo "2532"]
[BlackElo "2329"]
[TimeControl "180+1"]
[EndTime "14:17:56 PST"]
[Termination "ural58 won on time"]

1. e4 {[%clk 0:02:55.9]} 1... c5 {[%clk 0:02:59.3]} 2. b3 {[%clk 0:02:55.3]}
2... e5 {[%clk 0:02:58.5]} 3. Bb2 {[%clk 0:02:54.9]} 3... d6 {[%clk 0:02:56.8]}
4. f4 {[%clk 0:02:54.8]} 4... Nc6 {[%clk 0:02:55.1]} 5. Qf3 {[%clk 0:02:52.9]}
5... Nf6 {[%clk 0:02:53.3]} 6. Bb5 {[%clk 0:02:52]} 6... exf4 {[%clk 0:02:45.8]}
7. Bxc6+ {[%clk 0:02:49]} 7... bxc6 {[%clk 0:02:44.5]} 8. Ne2 {[%clk 0:02:46.8]}
8... Bg4 {[%clk 0:02:38.6]} 9. Qxf4 {[%clk 0:02:46.7]} 9... Bxe2 {[%clk
0:02:38.3]} 10. Bxf6 {[%clk 0:02:46.3]} 10... Qxf6 {[%clk 0:02:34.6]} 11. Qxf6
{[%clk 0:02:46.2]} 11... gxf6 {[%clk 0:02:34.8]} 12. Kxe2 {[%clk 0:02:46.7]}
12... O-O-O {[%clk 0:02:32.7]} 13. Nc3 {[%clk 0:02:45.3]} 13... d5 {[%clk
0:02:27.1]} 14. d3 {[%clk 0:02:43.2]} 14... f5 {[%clk 0:02:20.9]} 15. Raf1
{[%clk 0:02:34.1]} 15... Bg7 {[%clk 0:02:13.2]} 16. Na4 {[%clk 0:02:33.6]} 16...
dxe4 {[%clk 0:01:59.7]} 17. dxe4 {[%clk 0:02:32.8]} 17... fxe4 {[%clk
0:01:52.9]} 18. Rxf7 {[%clk 0:02:32]} 18... Bh6 {[%clk 0:01:50.7]} 19. Rd1
{[%clk 0:02:16.5]} 19... Rxd1 {[%clk 0:01:42]} 20. Kxd1 {[%clk 0:02:16.5]} 20...
Rd8+ {[%clk 0:01:42.9]} 21. Ke1 {[%clk 0:02:16.2]} 21... Rd2 {[%clk 0:01:12]}
22. Rxh7 {[%clk 0:02:09.6]} 22... Bg5 {[%clk 0:01:08.9]} 23. h4 {[%clk
0:02:06.9]} 23... Be3 {[%clk 0:01:02.8]} 24. Re7 {[%clk 0:02:01.9]} 24... Rxc2
{[%clk 0:00:37.9]} 25. Rxe4 {[%clk 0:01:56.1]} 25... Bd4 {[%clk 0:00:36]} 26. g4
{[%clk 0:01:48]} 26... Rxa2 {[%clk 0:00:29]} 27. g5 {[%clk 0:01:45.5]} 27... Rg2
{[%clk 0:00:22.5]} 28. Re2 {[%clk 0:01:17.2]} 28... Rg1+ {[%clk 0:00:20.5]} 29.
Kd2 {[%clk 0:01:17.3]} 29... Rh1 {[%clk 0:00:20.7]} 30. Re4 {[%clk 0:01:16.5]}
30... Rg1 {[%clk 0:00:14.4]} 31. Kd3 {[%clk 0:01:16.1]} 31... Bf2 {[%clk
0:00:08]} 32. Nb2 {[%clk 0:01:08.2]} 32... Kd7 {[%clk 0:00:06.8]} 33. Nc4 {[%clk
0:01:07.6]} 33... Bd4 {[%clk 0:00:06.6]} 34. Ne5+ {[%clk 0:01:02.6]} 34... Kd6
{[%clk 0:00:03.9]} 35. Nf7+ {[%clk 0:01:01.6]} 35... Kd5 {[%clk 0:00:03.2]} 36.
Rf4 {[%clk 0:00:59.1]} 36... Rg3+ {[%clk 0:00:03]} 37. Ke2 {[%clk 0:00:57.5]}
37... Rg2+ {[%clk 0:00:03.5]} 38. Ke1 {[%clk 0:00:56.7]} 38... Rg1+ {[%clk
0:00:03.6]} 39. Rf1 {[%clk 0:00:56.7]} 39... Rg4 {[%clk 0:00:03]} 40. Rh1 {[%clk
0:00:56.7]} 40... Re4+ {[%clk 0:00:03.1]} 41. Kd1 {[%clk 0:00:56.5]} 41... Bg7
{[%clk 0:00:02.3]} 42. h5 {[%clk 0:00:56]} 42... Rf4 {[%clk 0:00:02.4]} 43. g6
{[%clk 0:00:54.1]} 43... Ke6 {[%clk 0:00:01.6]} 44. h6 {[%clk 0:00:54.3]} 44...
Bxh6 {[%clk 0:00:01.4]} 45. Rxh6 {[%clk 0:00:54.4]} 45... Kf6 {[%clk 0:00:01.8]}
46. Nd8 {[%clk 0:00:50.8]} 46... Kg7 {[%clk 0:00:01.6]} 47. Rh7+ {[%clk
0:00:50.4]} 47... Kxg6 {[%clk 0:00:01.5]} 48. Rd7 {[%clk 0:00:51]} 48... Rf1+
{[%clk 0:00:01.4]} 49. Ke2 {[%clk 0:00:50.5]} 49... Rf6 {[%clk 0:00:02.3]} 50.
Rxa7 {[%clk 0:00:49.2]} 50... Rd6 {[%clk 0:00:02]} 51. Nf7 {[%clk 0:00:48.1]}
51... Re6+ {[%clk 0:00:01.2]} 52. Kd3 {[%clk 0:00:48.7]} 52... Rf6 {[%clk
0:00:01.3]} 53. Ne5+ {[%clk 0:00:48.4]} 53... Kf5 {[%clk 0:00:02]} 54. Nc4
{[%clk 0:00:48.9]} 54... Rh6 {[%clk 0:00:01.8]} 55. Kc2 {[%clk 0:00:49.8]} 55...
Rh3 {[%clk 0:00:02]} 56. Rc7 {[%clk 0:00:48.8]} 56... Ke6 {[%clk 0:00:01.9]} 57.
Rxc6+ {[%clk 0:00:49.4]} 57... Kd5 {[%clk 0:00:02.8]} 58. Rd6+ {[%clk
0:00:49.4]} 58... Ke4 {[%clk 0:00:02]} 59. Rd2 {[%clk 0:00:48.8]} 59... Rh2
{[%clk 0:00:02.9]} 60. Rxh2 {[%clk 0:00:48.2]} 1-0